fUST/lending_fUST_20260130
["ID","MTS","AMOUNT","RATE_DAILY","PERIOD"]
[404021867,1769737441598,1023.24539976,0.00034709,120]
[404021868,1769737466191,23678.744687,0.00034709,120]
[404021869,1769737530007,263.0,0.00027383,120]
[404021871,1769737554785,10410.0,0.00034709,120]
[404021872,1769737637971,-166.7012864,0.00010766,2]
[404021875,1769737702911,-500.0,0.00011022,2]
[404021876,1769737704961,-500.0,0.00011022,2]
[404021919,1769737836883,-487.60512361,0.00011022,2]
[404021921,1769737836901,-175.65493986,0.00011022,2]
[404021923,1769737836911,-575.0,0.00011022,2]
[404021925,1769737836920,-99.95475348,0.00011134,2]
[404021972,1769737837415,-68.81290636,0.00011134,2]
[404021974,1769737837425,-340.59835748,0.00011501,2]
[404022076,1769737838455,-24.08064252,0.00011501,2]
[404022078,1769737838465,-178.90913373,0.00011501,2]
[404022080,1769737838475,-288.25857878,0.00011605,2]
[404022082,1769737838486,-1163.60035851,0.00011605,2]
[404022086,1769737838521,-2565.59023495,0.00011605,2]
[404022087,1769737838729,-8987.92528626,0.00011605,2]
[404022088,1769737838739,-277.94968717,0.00011628,2]
[404022089,1769737838749,-270.69594244,0.00011628,2]
[404022090,1769737838759,-500.0,0.00011628,2]
[404022091,1769737838768,-217516.10927757,0.00011629,2]
[404022092,1769737838784,-4595.10034527,0.00011629,2]
[404022093,1769737838796,-50214.11538407,0.00011629,2]
[404022094,1769737838807,-330.79181208,0.00011629,2]
[404022175,1769737840278,-11500.0,0.00011629,2]
[404022177,1769737840289,-4985.08954833,0.00011629,2]
[404022179,1769737840300,-419.10950902,0.00011629,2]
[404022184,1769737840334,-6960.84644347,0.00011629,2]
[404022186,1769737840345,-46165.42777279,0.00011629,2]
[404022192,1769737840396,-320.40172444,0.00011629,2]
[404022194,1769737840407,-1255.0710825,0.00011629,2]
[404022440,1769737844349,-8218.0,0.00011629,2]
[404022442,1769737844361,-8203.65755394,0.00011629,2]
[404022444,1769737844372,-818.57209782,0.00011629,2]
[404022448,1769737844406,-4802.38725604,0.00011629,2]
[404022450,1769737844416,-4140.56806442,0.00011629,2]
[404022521,1769737845155,-156.77263682,0.00011629,2]
[404022601,1769737846229,-49811.80934991,0.00011629,2]
[404022602,1769737846240,-6260.91114423,0.00011629,2]
[404022603,1769737846281,-16409.99999999,0.00011629,2]
[404022604,1769737846292,-545.5,0.00011629,2]
[404022668,1769737894319,169.9199,0.00011621,120]
[404022669,1769737894492,169.9199,0.00011799,120]
[404022670,1769737894645,169.9199,0.00011858,120]
[404022671,1769737950406,150.56176428,0.00034748,120]
[404022672,1769737950493,337.39002028,0.00034748,120]
[404022673,1769737950800,150.56176428,0.00034748,120]
[404022674,1769737950984,337.39002028,0.00034748,120]
[404022675,1769737951421,337.39002028,0.00034748,120]
[404022676,1769737951792,337.39002028,0.00034748,120]
[404022677,1769737952180,337.39002028,0.00034748,120]
[404022678,1769737952584,337.39002028,0.00034748,120]
[404022679,1769737952990,337.39002028,0.00034748,120]
[404022680,1769737953400,337.39002028,0.00034748,120]
[404022681,1769737953942,337.39002028,0.00034748,120]
[404022682,1769737954232,337.39002028,0.00034748,120]
[404022683,1769737954628,337.39002028,0.00034748,120]
[404022684,1769737955020,337.39002028,0.00034748,120]
[404022685,1769737955392,337.39002028,0.00034748,120]
[404022686,1769737955769,337.39002028,0.00034748,120]
[404022688,1769738045542,54873.54,0.00034748,120]
[404022689,1769738045780,54873.54,0.00034748,120]
[404022690,1769738046020,54873.54,0.00034748,120]
[404022691,1769738046554,54873.54,0.00034748,120]
[404022692,1769738046789,54873.54,0.00034748,120]
[404022693,1769738047079,54873.54,0.00034748,120]
[404022694,1769738047492,54873.54,0.00034748,120]
[404022695,1769738047545,54873.54,0.00034748,120]
[404022696,1769738048595,54873.54,0.00034748,120]
[404022697,1769738048865,54873.54,0.00034748,120]
[404022698,1769738049125,54873.54,0.00034748,120]
[404022699,1769738049387,54873.54,0.00034748,120]
[404022700,1769738049659,54873.54,0.00034748,120]
[404022701,1769738049899,54873.54,0.00034748,120]
[404022702,1769738050182,54873.54,0.00034748,120]
[404022703,1769738054721,54873.54,0.00034748,120]
[404022704,1769738055002,54873.54,0.00034748,120]
[404022705,1769738055236,54873.54,0.00034748,120]
[404022706,1769738055532,54873.54,0.00034748,120]
[404022707,1769738055775,54873.54,0.00034748,120]
[404022708,1769738056015,54873.54,0.00034748,120]
[404022709,1769738056296,54873.54,0.00034748,120]
[404022710,1769738056580,54873.54,0.00034748,120]
[404022711,1769738056808,54873.58,0.00034748,120]
[404022712,1769738070560,168.69501013,0.00034748,120]
[404022713,1769738071149,168.69501013,0.00034748,120]
[404022714,1769738123548,516.62,0.00034748,120]
[404022718,1769738304118,200.0,0.0003,120]
[404022719,1769738405382,163.97,0.0001,2]
[404022724,1769739006644,500.0,0.00034714,120]
[404022725,1769739006900,500.0,0.00034714,120]
[404022726,1769739007152,500.0,0.00034714,120]
[404022727,1769739007383,500.0,0.00034714,120]
[404022736,1769739032072,-438.03028355,0.00010109,2]
[404022864,1769739038244,-775.92357743,0.00010109,2]
[404022865,1769739038254,-3001.15004143,0.00010211,2]
[404022866,1769739038264,-563.0,0.00010211,2]
[404022867,1769739038274,-809.38400439,0.00010314,2]
[404022868,1769739038283,-1200.0,0.00010417,2]
[404022869,1769739038294,-1451.9923186,0.00010418,2]
[404022870,1769739038304,-300.0,0.00010425,2]
[404022871,1769739038314,-300.0,0.00010425,2]
[404022872,1769739038324,-2583.30334884,0.00010426,2]
[404022873,1769739038339,-11109.42502426,0.00010426,2]
[404022874,1769739038348,-500.0,0.00010632,2]
[404022875,1769739038359,-500.0,0.00010632,2]
[404022876,1769739038368,-500.0,0.00010632,2]
[404022877,1769739038378,-500.0,0.00010632,2]
[404022878,1769739038387,-500.0,0.00010632,2]
[404022879,1769739038396,-500.0,0.00010632,2]
[404022880,1769739038406,-500.0,0.00010632,2]
[404022881,1769739038415,-500.0,0.00010632,2]
[404022882,1769739038425,-298.36516635,0.00010632,2]
[404022883,1769739038434,-500.0,0.00010632,2]
[404022884,1769739038443,-500.0,0.00010632,2]
[404022885,1769739038452,-351.17759469,0.00010632,2]
[404022886,1769739038461,-500.0,0.00010632,2]
[404022887,1769739038470,-500.0,0.00010632,2]
[404022888,1769739038479,-500.0,0.00010632,2]
[404022889,1769739038489,-500.0,0.00010632,2]
[404022890,1769739038499,-500.0,0.00010632,2]
[404022891,1769739038508,-500.0,0.00010632,2]
[404022892,1769739038518,-500.0,0.00010632,2]
[404022893,1769739038527,-500.0,0.00010632,2]
[404022894,1769739038536,-500.0,0.00010632,2]
[404022895,1769739038545,-500.0,0.00010632,2]
[404022896,1769739038554,-500.0,0.00010632,2]
[404022897,1769739038563,-500.0,0.00010632,2]
[404022898,1769739038572,-500.0,0.00010632,2]
[404022899,1769739038581,-500.0,0.00010632,2]
[404022900,1769739038590,-500.0,0.00010632,2]
[404022901,1769739038602,-500.0,0.00010632,2]
[404022902,1769739038611,-500.0,0.00010632,2]
[404022903,1769739038621,-500.0,0.00010632,2]
[404022904,1769739038630,-500.0,0.00010632,2]
[404022905,1769739038639,-38.49723433,0.00010632,2]
[404022970,1769739040391,-461.50276567,0.00010632,2]
[404022972,1769739040400,-500.0,0.00010632,2]
[404022974,1769739040410,-500.0,0.00010632,2]
[404022976,1769739040419,-500.0,0.00010632,2]
[404022978,1769739040428,-433.40725019,0.00010632,2]
[404022980,1769739040446,-66.59274981,0.00010632,2]
[404022981,1769739040456,-257.53855269,0.00010632,2]
[404022983,1769739040467,-242.46144731,0.00010632,2]
[404022984,1769739040477,-410.18476614,0.00010632,2]
[404023054,1769739044477,-89.81523386,0.00010632,2]
[404023056,1769739044488,-500.0,0.00010632,2]
[404023058,1769739044497,-500.0,0.00010632,2]
[404023060,1769739044507,-500.0,0.00010632,2]
[404023062,1769739044517,-500.0,0.00010632,2]
[404023064,1769739044526,-500.0,0.00010632,2]
[404023067,1769739044536,-500.0,0.00010632,2]
[404023069,1769739044546,-296.60794336,0.00010632,2]
[404023071,1769739044555,-500.0,0.00010632,2]
[404023073,1769739044564,-500.0,0.00010632,2]
[404023074,1769739044575,-500.0,0.00010632,2]
[404023077,1769739044587,-500.0,0.00010632,2]
[404023079,1769739044597,-500.0,0.00010632,2]
[404023081,1769739044607,-500.0,0.00010632,2]
[404023082,1769739044617,-500.0,0.00010632,2]
[404023085,1769739044626,-500.0,0.00010632,2]
[404023087,1769739044637,-500.0,0.00010632,2]
[404023089,1769739044646,-363.27606378,0.00010632,2]
[404023091,1769739044658,-136.72393622,0.00010632,2]
[404023093,1769739044668,-479.48561997,0.00010632,2]
[404023095,1769739044677,-500.0,0.00010632,2]
[404023097,1769739044687,-500.0,0.00010632,2]
[404023099,1769739044696,-500.0,0.00010632,2]
[404023101,1769739044705,-500.0,0.00010632,2]
[404023103,1769739044715,-500.0,0.00010632,2]
[404023105,1769739044725,-500.0,0.00010632,2]
[404023107,1769739044735,-500.0,0.00010632,2]
[404023109,1769739044748,-500.0,0.00010632,2]
[404023111,1769739044758,-500.0,0.00010632,2]
[404023113,1769739044767,-500.0,0.00010632,2]
[404023115,1769739044776,-500.0,0.00010632,2]
[404023117,1769739044785,-500.0,0.00010632,2]
[404023119,1769739044794,-500.0,0.00010632,2]
[404023121,1769739044803,-18775.12529372,0.00010632,2]
[404023164,1769739045219,-442.81646,0.00010632,2]
[404023288,1769739046389,-2449.84927238,0.00010632,2]
[404023289,1769739046398,-300.0,0.00010633,2]
[404023291,1769739046407,-300.0,0.00010633,2]
[404023293,1769739046416,-300.0,0.00010633,2]
[404023295,1769739046426,-300.0,0.00010633,2]
[404023297,1769739046435,-300.0,0.00010633,2]
[404023299,1769739046444,-300.0,0.00010633,2]
[404023301,1769739046453,-300.0,0.00010633,2]
[404023303,1769739046462,-300.0,0.00010633,2]
[404023305,1769739046471,-300.0,0.00010633,2]
[404023307,1769739046480,-300.0,0.00010633,2]
[404023309,1769739046489,-300.0,0.00010633,2]
[404023311,1769739046498,-300.0,0.00010633,2]
[404023313,1769739046507,-300.0,0.00010633,2]
[404023315,1769739046516,-300.0,0.00010633,2]
[404023316,1769739046525,-300.0,0.00010633,2]
[404023318,1769739046534,-600.0,0.00010845,2]
[404023320,1769739046544,-426.659,0.00011298,2]
[404023322,1769739046554,-190.14069394,0.00011323,2]
[404023324,1769739046564,-300.0,0.00011425,2]
[404023326,1769739046573,-2142.04946437,0.00011425,2]
[404023328,1769739046582,-503.78410191,0.00011425,2]
[404023330,1769739046591,-412.10045411,0.00011426,2]
[404023332,1769739046600,-12247.84284615,0.00011427,2]
[404023338,1769739046640,-280.2939363,0.00011427,2]
[404023365,1769739071290,-300.0,0.000118,4]
[404023366,1769739072899,-300.0,0.000118,4]
[404023367,1769739073783,-300.0,0.000118,4]
[404023368,1769739074922,-300.0,0.000118,4]
[404023369,1769739077272,-300.0,0.000118,4]
[404023370,1769739078184,500.0,0.00034714,120]
[404023371,1769739078435,536.81040719,0.00034714,120]
[404023458,1769739616422,574.23431206,0.00034714,120]
[404023639,1769739954368,393.0,0.0003472,120]
[404023640,1769740056493,-1500.0,0.000118,4]
[404023641,1769740106943,3696.05173411,0.0002,120]
[404023643,1769740116415,155.96456319,0.000295,120]
[404023644,1769740116493,151.52788587,0.0003472,120]
[404023645,1769740117457,150.68467653,0.0003472,120]
[404023651,1769740171093,-300.0,0.00010525,2]
[404023652,1769740171116,-191.42535403,0.00010578,2]
[404023653,1769740171137,-569.0,0.00010631,2]
[404023654,1769740171158,-1200.0,0.00010843,2]
[404023655,1769740171179,-300.0,0.00010843,2]
[404023656,1769740171202,-300.0,0.00010844,2]
[404023657,1769740171225,-300.0,0.00010844,2]
[404023658,1769740171247,-300.0,0.00010844,2]
[404023659,1769740171269,-300.0,0.00010844,2]
[404023660,1769740171292,-300.0,0.00010844,2]
[404023661,1769740171315,-300.0,0.00010844,2]
[404023662,1769740171340,-300.0,0.00010844,2]
[404023663,1769740171363,-300.0,0.00010844,2]
[404023664,1769740171385,-300.0,0.00010844,2]
[404023665,1769740171408,-300.0,0.00010844,2]
[404023666,1769740171431,-300.0,0.00010844,2]
[404023667,1769740171453,-300.0,0.00010844,2]
[404023668,1769740171477,-300.0,0.00010844,2]
[404023669,1769740171498,-300.0,0.00010844,2]
[404023670,1769740171519,-300.0,0.00010844,2]
[404023671,1769740171541,-696.4947064,0.00010912,2]
[404023672,1769740171563,-1127.21856912,0.00010912,2]
[404023695,1769740232292,-48.44973378,0.00010912,2]
[404023696,1769740232302,-573.0,0.00010912,2]
[404023697,1769740232311,-3381.0577973,0.00010939,2]
[404023698,1769740232321,-600.0,0.0001106,2]
[404023699,1769740232330,-222.0,0.000111,2]
[404023700,1769740232340,-273.062,0.000111,2]
[404023701,1769740232349,-598.13183856,0.000112,2]
[404023702,1769740232358,-500.0,0.00011225,2]
[404023703,1769740232367,-484.84861749,0.00011225,2]
[404023704,1769740232376,-228.50945696,0.00011225,2]
[404023705,1769740232385,-500.0,0.00011225,2]
[404023706,1769740232395,-500.0,0.00011225,2]
[404023707,1769740232404,-500.0,0.00011225,2]
[404023708,1769740232413,-500.0,0.00011225,2]
[404023709,1769740232422,-500.0,0.00011225,2]
[404023710,1769740232431,-500.0,0.00011225,2]
[404023711,1769740232440,-500.0,0.00011225,2]
[404023712,1769740232449,-500.0,0.00011225,2]
[404023713,1769740232458,-193.53424908,0.00011225,2]
[404023714,1769740232467,-500.0,0.00011225,2]
[404023715,1769740232477,-277.62593937,0.00011225,2]
[404023716,1769740232485,-500.0,0.00011225,2]
[404023717,1769740232495,-500.0,0.00011225,2]
[404023718,1769740232505,-500.0,0.00011225,2]
[404023719,1769740232514,-500.0,0.00011225,2]
[404023720,1769740232524,-500.0,0.00011225,2]
[404023721,1769740232533,-500.0,0.00011225,2]
[404023722,1769740232543,-498.80713884,0.00011225,2]
[404023723,1769740232552,-500.0,0.00011225,2]
[404023724,1769740232561,-500.0,0.00011225,2]
[404023725,1769740232571,-500.0,0.00011225,2]
[404023726,1769740232580,-500.0,0.00011225,2]
[404023727,1769740232589,-500.0,0.00011225,2]
[404023728,1769740232598,-500.0,0.00011225,2]
[404023729,1769740232607,-500.0,0.00011225,2]
[404023730,1769740232616,-500.0,0.00011225,2]
[404023731,1769740232625,-500.0,0.00011225,2]
[404023732,1769740232636,-500.0,0.00011225,2]
[404023733,1769740232645,-500.0,0.00011225,2]
[404023734,1769740232655,-500.0,0.00011225,2]
[404023735,1769740232664,-500.0,0.00011225,2]
[404023736,1769740232673,-500.0,0.00011225,2]
[404023737,1769740232683,-500.0,0.00011225,2]
[404023738,1769740232693,-500.0,0.00011225,2]
[404023739,1769740232702,-300.0,0.00011225,2]
[404023740,1769740232712,-304.0,0.00011225,2]
[404023741,1769740232721,-500.0,0.00011225,2]
[404023742,1769740232730,-368.74832726,0.00011226,2]
[404023743,1769740232739,-53419.17698982,0.00011227,2]
[404023744,1769740232751,-2898.06756959,0.00011227,2]
[404023745,1769740232762,-2997.86350935,0.00011227,2]
[404023748,1769740232798,-500.0,0.00011225,2]
[404023749,1769740232808,-500.0,0.00011225,2]
[404023750,1769740232818,-195.37510546,0.00011225,2]
[404023751,1769740232827,-500.0,0.00011225,2]
[404023753,1769740232837,-500.0,0.00011225,2]
[404023754,1769740232847,-58595.16323489,0.00011227,2]
[404023777,1769740238336,-500.0,0.00011225,2]
[404023778,1769740238346,-500.0,0.00011225,2]
[404023779,1769740238356,-500.0,0.00011225,2]
[404023780,1769740238365,-500.0,0.00011225,2]
[404023781,1769740238375,-500.0,0.00011225,2]
[404023782,1769740238389,-500.0,0.00011225,2]
[404023783,1769740238399,-500.0,0.00011225,2]
[404023784,1769740238408,-500.0,0.00011225,2]
[404023785,1769740238418,-500.0,0.00011225,2]
[404023786,1769740238427,-500.0,0.00011225,2]
[404023788,1769740238437,-500.0,0.00011225,2]
[404023790,1769740238446,-500.0,0.00011225,2]
[404023792,1769740238456,-500.0,0.00011225,2]
[404023794,1769740238466,-500.0,0.00011225,2]
[404023796,1769740238475,-500.0,0.00011225,2]
[404023798,1769740238485,-500.0,0.00011225,2]
[404023800,1769740238494,-500.0,0.00011225,2]
[404023802,1769740238503,-500.0,0.00011225,2]
[404023803,1769740238513,-500.0,0.00011225,2]
[404023805,1769740238523,-500.0,0.00011225,2]
[404023807,1769740238534,-252.69788946,0.00011225,2]
[404023810,1769740238547,-247.30211054,0.00011225,2]
[404023812,1769740238556,-500.0,0.00011225,2]
[404023814,1769740238566,-500.0,0.00011225,2]
[404023816,1769740238576,-500.0,0.00011225,2]
[404023818,1769740238585,-500.0,0.00011225,2]
[404023820,1769740238594,-500.0,0.00011225,2]
[404023821,1769740238604,-343.10087518,0.00011225,2]
[404023824,1769740238615,-156.89912482,0.00011225,2]
[404023825,1769740238626,-500.0,0.00011225,2]
[404023827,1769740238635,-500.0,0.00011225,2]
[404023829,1769740238645,-500.0,0.00011225,2]
[404023831,1769740238654,-500.0,0.00011225,2]
[404023833,1769740238664,-500.0,0.00011225,2]
[404023835,1769740238674,-500.0,0.00011225,2]
[404023837,1769740238683,-500.0,0.00011225,2]
[404023839,1769740238693,-491.35869012,0.00011225,2]
[404023841,1769740238702,-500.0,0.00011225,2]
[404023843,1769740238712,-500.0,0.00011225,2]
[404023845,1769740238722,-500.0,0.00011225,2]
[404023847,1769740238735,-500.0,0.00011225,2]
[404023849,1769740238744,-500.0,0.00011225,2]
[404023851,1769740238754,-20999.34794491,0.00011227,2]
[404023853,1769740238765,-2169.12779632,0.00011227,2]
[404023855,1769740238778,-1511.5793,0.00011227,2]
[404023857,1769740238789,-244496.38097521,0.00011227,2]
[404023860,1769740238801,-446.94503474,0.00011227,2]
[404023862,1769740238812,-1586.21195227,0.00011227,2]
[404023864,1769740238824,-2352.00076887,0.00011227,2]
[404023866,1769740238839,-4928.80186661,0.00011227,2]
[404023868,1769740238852,-14611.81275193,0.00011227,2]
[404023870,1769740238863,-19283.52023384,0.00011227,2]
[404023872,1769740238875,-1076.576635,0.00011227,2]
[404023874,1769740238886,-3073.821,0.00011227,2]
[404023876,1769740238897,-920.0098551,0.00011227,2]
[404023879,1769740238908,-1672.22702832,0.00011227,2]
[404023931,1769740240485,-6822.97333153,0.00011227,2]
[404023951,1769740240662,-930.96029673,0.00011227,2]
[404024016,1769740245344,-1399.79753792,0.00011227,2]
[404024110,1769740246488,-1715.2014698,0.00011227,2]
[404024111,1769740246544,-44749.39223667,0.00011227,2]
[404024112,1769740246556,-2852.30707734,0.00011227,2]
[404024207,1769740350375,180.13160194,0.00034708,120]
[404024208,1769740350748,180.13160194,0.00034708,120]
[404024211,1769740738434,500.0,0.00034711,120]
[404024212,1769740738668,505.42672274,0.00034711,120]
[404024503,1769741026219,153.83928479,0.00034711,120]
[404024504,1769741142232,-162.31,0.0001,2]
[404024505,1769741142254,-187.59684695,0.00010071,2]
[404024506,1769741142275,-170.5520785,0.00010142,2]
[404024507,1769741142296,-562.0,0.00010142,2]
[404024508,1769741142317,-380.346,0.00010904,2]
[404024509,1769741142337,-1713.63957148,0.00011027,2]
[404024510,1769741142356,-1713.63957147,0.0001107,2]
[404024511,1769741142376,-1713.63957147,0.00011114,2]
[404024512,1769741142399,-300.0,0.00011125,2]
[404024513,1769741142421,-258.12382908,0.00011126,2]
[404024514,1769741142444,-500.0,0.00011126,2]
[404024515,1769741142467,-500.0,0.00011126,2]
[404024516,1769741142489,-188.37501172,0.00011126,2]
[404024517,1769741142510,-500.0,0.00011126,2]
[404024518,1769741142532,-500.0,0.00011126,2]
[404024519,1769741142553,-500.0,0.00011126,2]
[404024520,1769741142575,-500.0,0.00011126,2]
[404024521,1769741142597,-500.0,0.00011126,2]
[404024522,1769741142619,-500.0,0.00011126,2]
[404024523,1769741142641,-299.13586901,0.00011126,2]
[404024524,1769741142662,-500.0,0.00011126,2]
[404024525,1769741142683,-500.0,0.00011126,2]
[404024526,1769741142705,-500.0,0.00011126,2]
[404024527,1769741142725,-500.0,0.00011126,2]
[404024528,1769741142745,-500.0,0.00011126,2]
[404024529,1769741142766,-500.0,0.00011126,2]
[404024530,1769741142786,-349.74817375,0.00011126,2]
[404024531,1769741142807,-500.0,0.00011126,2]
[404024532,1769741142829,-500.0,0.00011126,2]
[404024533,1769741142850,-500.0,0.00011126,2]
[404024534,1769741142871,-500.0,0.00011126,2]
[404024535,1769741142893,-91.73097257,0.00011126,2]
[404024536,1769741169798,500.0,0.00034711,120]
[404024537,1769741170050,500.0,0.00034711,120]
[404024538,1769741170280,500.0,0.00034711,120]
[404024539,1769741170513,500.0,0.00034711,120]
[404024540,1769741170741,500.0,0.00034711,120]
[404024541,1769741170988,500.0,0.00034711,120]
[404024542,1769741171727,500.0,0.00034711,120]
[404024543,1769741172010,500.0,0.00034711,120]
[404024544,1769741172246,500.0,0.00034711,120]
[404024545,1769741172521,500.0,0.00034711,120]
[404024546,1769741172762,500.0,0.00034711,120]
[404024547,1769741173119,500.0,0.00034711,120]
[404024548,1769741173249,500.0,0.00034711,120]
[404024549,1769741173523,500.0,0.00034711,120]
[404024550,1769741173752,500.0,0.00034711,120]
[404024551,1769741174019,382.06618269,0.00034711,120]
[404024552,1769741201081,-163.17805646,0.00011026,2]
[404024553,1769741254083,-17.5086239,0.00011026,2]
[404024554,1769741254103,-1187.93284073,0.00011026,2]
[404024555,1769741254124,-1187.93284073,0.00011026,2]
[404024556,1769741254145,-1187.93284073,0.00011026,2]
[404024557,1769741254166,-1187.93284073,0.00011026,2]
[404024558,1769741254185,-1187.93284073,0.00011026,2]
[404024559,1769741254204,-1187.93284073,0.00011026,2]
[404024560,1769741254223,-1187.93284073,0.00011026,2]
[404024561,1769741254242,-1187.93284073,0.00011026,2]
[404024562,1769741254270,-1187.93284073,0.00011026,2]
[404024563,1769741254291,-1187.93284073,0.00011026,2]
[404024564,1769741254310,-1187.93284073,0.00011026,2]
[404024565,1769741254329,-1187.93284073,0.00011026,2]
[404024566,1769741254352,-1187.93284073,0.00011026,2]
[404024567,1769741254379,-1187.93284073,0.00011026,2]
[404024568,1769741254400,-1187.93284073,0.00011026,2]
[404024569,1769741254419,-1187.93284073,0.00011026,2]
[404024570,1769741254655,-1187.93284073,0.00011026,2]
[404024571,1769741254676,-1187.93284073,0.00011026,2]
[404024572,1769741254696,-1187.93284073,0.00011026,2]
[404024573,1769741254717,-1187.93284073,0.00011026,2]
[404024574,1769741254737,-1187.93284073,0.00011026,2]
[404024575,1769741254757,-1187.93284073,0.00011026,2]
[404024576,1769741254780,-1187.93284073,0.00011026,2]
[404024577,1769741254802,-1187.93284073,0.00011026,2]
[404024578,1769741254823,-1187.93284073,0.00011026,2]
[404024579,1769741254844,-1187.93284073,0.00011026,2]
[404024580,1769741254866,-1187.93284073,0.00011026,2]
[404024581,1769741254890,-1187.93284073,0.00011026,2]
[404024582,1769741254911,-1187.93284073,0.00011026,2]
[404024583,1769741254932,-1187.93284073,0.00011026,2]
[404024584,1769741254954,-1187.93284073,0.00011026,2]
[404024585,1769741254975,-1187.93284073,0.00011026,2]
[404024586,1769741254996,-1187.93284073,0.00011026,2]
[404024587,1769741255018,-1187.93284073,0.00011026,2]
[404024588,1769741255040,-1187.93284073,0.00011026,2]
[404024589,1769741255060,-1187.93284073,0.00011026,2]
[404024590,1769741255080,-1187.93284073,0.00011026,2]
[404024591,1769741255104,-1187.93284073,0.00011026,2]
[404024592,1769741255126,-1187.93284073,0.00011026,2]
[404024593,1769741255149,-1187.93284073,0.00011026,2]
[404024594,1769741255171,-1187.93284073,0.00011026,2]
[404024595,1769741255193,-1187.93284073,0.00011026,2]
[404024596,1769741255213,-1187.93284073,0.00011026,2]
[404024597,1769741255232,-1187.93284073,0.00011026,2]
[404024598,1769741255254,-1187.93284073,0.00011026,2]
[404024599,1769741255275,-1187.93284073,0.00011026,2]
[404024600,1769741255299,-1187.93284073,0.00011026,2]
[404024601,1769741255319,-1187.93284073,0.00011026,2]
[404024602,1769741255339,-1187.93284073,0.00011026,2]
[404024603,1769741255359,-1187.93284073,0.00011026,2]
[404024604,1769741255378,-1187.93284073,0.00011026,2]
[404024605,1769741255399,-1187.93284073,0.00011026,2]
[404024606,1769741255420,-1187.93284073,0.00011026,2]
[404024607,1769741255442,-1187.93284073,0.00011026,2]
[404024608,1769741255462,-1187.93284073,0.00011026,2]
[404024609,1769741255486,-1187.93284073,0.00011026,2]
[404024610,1769741255507,-1187.93284073,0.00011026,2]
[404024611,1769741255527,-1187.93284073,0.00011026,2]
[404024612,1769741255547,-1187.93284073,0.00011026,2]
[404024613,1769741255566,-1187.93284073,0.00011026,2]
[404024614,1769741255585,-1187.93284073,0.00011026,2]
[404024615,1769741255604,-1187.93284073,0.00011026,2]
[404024616,1769741255623,-1187.93284073,0.00011026,2]
[404024617,1769741255644,-1187.93284073,0.00011026,2]
[404024618,1769741255663,-1154.67072121,0.00011026,2]
[404024619,1769741255682,-1154.67072121,0.00011026,2]
[404024620,1769741255702,-1154.67072121,0.00011026,2]
[404024621,1769741255721,-1154.67072121,0.00011026,2]
[404024622,1769741255741,-1154.67072121,0.00011026,2]
[404024623,1769741255760,-1154.67072121,0.00011026,2]
[404024624,1769741255781,-1154.67072121,0.00011026,2]
[404024625,1769741255801,-1154.67072121,0.00011026,2]
[404024626,1769741255822,-1154.67072121,0.00011026,2]
[404024627,1769741255842,-1154.67072121,0.00011026,2]
[404024628,1769741255862,-1154.67072121,0.00011026,2]
[404024629,1769741255882,-1154.67072121,0.00011026,2]
[404024630,1769741255913,-1154.67072121,0.00011026,2]
[404024631,1769741255935,-1154.67072121,0.00011026,2]
[404024632,1769741255971,-1154.67072121,0.00011026,2]
[404024633,1769741255995,-1154.67072121,0.00011026,2]
[404024634,1769741256017,-1154.67072121,0.00011026,2]
[404024635,1769741256038,-1154.67072121,0.00011026,2]
[404024636,1769741256060,-1154.67072121,0.00011026,2]